bitfinex/quotes_ETHUSD_20250131
["timestamp","ask_amount","ask_price","bid_price","bid_amount"]
[1738338576202,2.93385,3408.5,3407.8,5.93443]
[1738338576203,2.93385,3408.5,3407.8,3.0]
[1738338576407,1.663505,3408.5,3407.8,5.93439]
[1738338576710,1.663505,3408.5,3408.0,2.93419]
[1738338576907,4.597405,3408.5,3407.7,0.58076288]
[1738338577083,2.93397,3408.4,3407.8,3.0]
[1738338577413,1.663505,3408.5,3407.8,3.87942229]
[1738338577571,1.663505,3408.5,3408.0,2.93424]
[1738338578091,1.663505,3408.5,3408.1,2.93418]
[1738338578298,1.663505,3408.5,3408.0,3.0]
[1738338578492,1.663505,3408.5,3407.9,5.93434]
[1738338579106,1.663505,3408.5,3408.0,2.93425]
[1738338579780,1.663505,3408.5,3407.9,3.0]
[1738338580088,2.28854417,3408.5,3407.9,3.0]
[1738338580301,1.663505,3408.5,3407.9,3.0]
[1738338580485,5.930275,3408.7,3407.9,3.0]
[1738338580686,5.930275,3408.7,3408.0,2.93426]
[1738338581314,5.930275,3408.7,3407.9,3.0]
[1738338581609,5.930275,3408.7,3407.9,5.93433]
[1738338581808,3.8201475,3408.6,3407.9,5.93433]
[1738338582011,1.2669,3408.3,3407.7,3.58076288]
[1738338582408,4.20092,3408.3,3407.7,3.58076288]
[1738338582610,1.2669,3408.3,3407.7,3.58076288]
[1738338583110,3.8201675,3408.6,3407.8,2.93443]
[1738338583316,0.84172825,3408.5,3407.8,4.26663]
[1738338583927,7.11349,3408.6,3407.9,3.0]
[1738338583928,1.2459,3408.6,3407.9,3.0]
[1738338584128,1.2459,3408.6,3408.0,2.93425]
[1738338584911,1.2459,3408.6,3408.1,2.93418]
[1738338585275,1.2459,3408.6,3408.2,2.93409]
[1738338585816,1.2459,3408.6,3408.1,5.93417]
[1738338587390,0.03667356,3408.5,3408.0,5.93425]
[1738338587589,1.2459,3408.6,3407.7,0.58076288]
[1738338587792,4.21634676,3408.6,3407.9,3.0]
[1738338588094,4.21634676,3408.6,3407.9,5.93435]
[1738338588095,4.17967,3408.6,3407.9,5.93435]
[1738338588601,4.21634678,3408.6,3407.7,0.58076288]
[1738338588803,2.93387,3408.5,3407.8,2.9344]
[1738338589194,2.93387,3408.5,3407.9,3.0]
[1738338590527,0.711348,3408.5,3407.5,7.26338]
[1738338590696,1.274,3408.2,3407.5,5.93468]
[1738338591320,4.20816,3408.2,3407.5,5.93468]
[1738338591811,4.20816,3408.2,3407.6,0.57852888]
[1738338592018,4.922364,3408.2,3407.6,0.57852888]
[1738338592328,1.3154,3407.9,3406.9,1.3775]
[1738338592484,1.3154,3407.9,3407.4,3.0]
[1738338592684,1.3154,3407.9,3407.3,2.93486]
[1738338592891,1.3154,3407.9,3407.4,3.0]
[1738338593217,1.3154,3407.9,3407.4,5.93478]
[1738338593521,1.663505,3408.0,3407.7,2.93446]
[1738338593681,1.3154,3408.2,3407.7,2.93446]
[1738338594223,1.663505,3408.3,3407.8,3.0]
[1738338594418,1.663505,3408.3,3407.8,5.93438]
[1738338595225,1.663505,3408.3,3407.8,3.0]
[1738338595438,1.663505,3408.3,3407.9,3.48038042]
[1738338596434,1.663505,3408.3,3407.9,3.48033042]
[1738338596635,1.3154,3408.4,3407.9,0.54603042]
[1738338596853,1.3154,3408.4,3408.0,2.93422]
[1738338597194,1.3154,3408.4,3408.2,2.93409]
[1738338598242,1.3154,3408.4,3408.0,2.93422]
[1738338598393,1.3154,3408.4,3407.9,0.5917684]
[1738338598593,1.3154,3408.4,3407.8,3.0]
[1738338598829,1.3154,3408.4,3407.8,5.93442]
[1738338599418,4.967622,3408.4,3407.8,3.0]
[1738338599612,2.93401,3408.3,3407.7,3.0]
[1738338600045,2.033692,3408.4,3407.7,5.93452]
[1738338600345,2.033692,3408.4,3407.6,3.50824376]
[1738338600346,4.967622,3408.4,3407.6,0.57369376]
[1738338600605,3.4308322,3408.3,3407.6,3.50830376]
[1738338600772,1.2713,3408.1,3407.3,2.93484]
[1738338600976,4.2055,3408.1,3407.4,0.57703874]
[1738338601119,2.93436,3407.9,3407.4,0.57703874]
[1738338601321,4.38230622,3408.1,3407.4,0.57703874]
[1738338602013,1.2713,3408.1,3407.4,0.57703874]
[1738338602213,1.2713,3408.1,3407.8,2.93442]
[1738338602448,1.2713,3408.1,3407.6,2.93459]
[1738338602752,2.93434,3408.0,3407.2,2.93489]
[1738338602972,1.365,3407.8,3407.0,0.01658927]
[1738338603134,1.365,3407.5,3407.0,0.01658927]
[1738338603533,4.29978,3407.5,3407.0,0.01658927]
[1738338603734,1.365,3407.5,3407.0,0.01658927]
[1738338604156,1.365,3407.5,3407.1,2.93499]
[1738338604389,1.663505,3407.7,3407.3,2.93479]
[1738338604983,1.663505,3407.7,3407.5,2.93469]
[1738338605183,1.663505,3407.7,3407.6,2.93461]
[1738338605339,1.663505,3407.7,3407.6,3.52154]
[1738338605539,1.663505,3407.7,3407.6,7.79734]
[1738338606633,3.029405,3407.7,3407.1,2.93504]
[1738338606836,3.029405,3407.7,3407.0,0.01658927]
[1738338606837,3.029405,3407.7,3407.0,2.95168927]
[1738338607041,0.03668582,3407.6,3407.0,0.01658927]
[1738338607241,2.93473,3407.5,3407.0,0.01658927]
[1738338607484,1.358,3407.3,3407.0,0.01658927]
[1738338611239,1.663505,3407.4,3407.0,0.01658927]
[1738338612394,4.598295,3407.4,3407.0,0.01658927]
[1738338613260,1.663505,3407.3,3407.0,0.01658927]
[1738338614048,1.3232,3407.2,3407.0,0.01658927]
[1738338614254,2.97173048,3407.1,3407.0,0.01658927]
[1738338614491,6.84828955,3407.1,3407.0,0.01658927]
[1738338616304,3.023905,3407.1,3407.0,0.01658927]
[1738338616456,1.663505,3407.1,3407.0,0.01658927]
[1738338617004,1.663505,3407.1,3407.0,1.28238927]
[1738338617147,4.29459,3408.1,3407.3,2.93481]
[1738338617349,1.70018672,3408.0,3407.2,2.93494]
[1738338617565,2.93437,3407.9,3407.1,2.93503]
[1738338617770,1.663505,3407.9,3407.3,2.93483]
[1738338617968,1.663505,3407.9,3407.1,3.65029193]
[1738338618155,1.2601,3407.7,3407.0,0.01658927]
[1738338618350,1.663505,3407.9,3407.3,2.93487]
[1738338618587,1.663505,3407.9,3407.3,3.52351993]
[1738338618786,4.597865,3407.9,3407.1,2.93504]
[1738338619377,4.597865,3407.9,3407.0,0.01658927]
[1738338619378,2.93462,3407.6,3407.0,0.01658927]
[1738338619812,2.93458,3407.7,3407.0,3.01658927]
[1738338620211,2.93469,3407.6,3407.0,0.01658927]
[1738338620605,2.93469,3407.6,3407.0,3.01658927]
[1738338620988,4.25337,3407.8,3407.0,3.01658927]
[1738338621168,0.03668681,3407.7,3407.0,0.01658927]
[1738338621369,1.2484,3407.6,3407.0,0.01658927]
[1738338621680,2.93487,3407.3,3407.0,0.01658927]
[1738338621883,1.2484,3407.1,3407.0,0.01658927]
[1738338622490,4.18344,3407.1,3407.0,0.01658927]
[1738338622701,5.846945,3407.1,3407.0,0.01658927]
[1738338622875,4.07202077,3407.1,3407.0,0.01658927]
[1738338623072,1.663505,3407.1,3407.0,0.01658927]
[1738338624624,4.598545,3407.1,3407.0,0.01658927]
[1738338624831,5.88553867,3407.1,3407.0,0.01658927]
[1738338625126,5.848845,3407.1,3407.0,0.01658927]
[1738338629274,2.913805,3407.1,3407.0,0.01658927]
[1738338630176,6.7272165,3407.1,3407.0,0.01658927]
[1738338631709,9.54646916,3407.1,3407.0,0.01658927]
[1738338631881,6.7272165,3407.1,3407.0,0.01658927]
[1738338635290,9.54646916,3407.1,3407.0,0.01658927]
[1738338636083,6.7272165,3407.1,3407.0,0.01658927]
[1738338639812,3.7921765,3407.1,3407.0,0.01658927]
[1738338639983,5.848845,3407.1,3407.0,0.01658927]
[1738338640720,2.913805,3407.1,3407.0,0.01658927]
[1738338640882,1.663505,3407.1,3407.0,0.01658927]
[1738338642413,4.598545,3407.1,3407.0,0.01658927]
[1738338642599,5.52059747,3407.1,3407.0,0.01658927]
[1738338642787,6.8040055,3407.1,3407.0,0.01658927]
[1738338643694,6.8419285,3407.1,3407.0,0.01658927]
[1738338647396,5.956568,3407.1,3407.0,0.01658927]
[1738338648503,3.021528,3407.1,3407.0,0.01658927]
[1738338649309,1.701428,3407.1,3407.0,0.01658927]
[1738338651625,5.945368,3407.1,3407.0,0.01658927]
[1738338653721,1.701428,3407.1,3407.0,0.01658927]
[1738338656406,5.1000988,3407.1,3407.0,0.01658927]
[1738338656814,2.1650588,3407.1,3407.0,0.01658927]
[1738338657511,5.1000988,3407.1,3407.0,0.01658927]
[1738338658131,9.2391461,3407.1,3407.0,0.01658927]
[1738338658333,9.75245146,3407.1,3407.0,0.01658927]
[1738338658538,1.3216,3406.4,3405.1,1.3662]
[1738338658750,2.93619,3405.8,3405.1,4.30296]
[1738338658950,2.93627,3405.7,3405.1,1.3662]
[1738338659247,1.663505,3405.6,3405.1,1.3662]
[1738338659449,1.663505,3405.6,3405.2,2.93663]
[1738338659955,1.663505,3405.6,3405.5,2.93642]
[1738338660114,1.663505,3405.6,3405.5,4.18832]
[1738338660565,1.663505,3405.6,3405.5,1.2519]
[1738338660847,1.663505,3405.6,3405.3,1.3077]
[1738338661363,2.2580495,3405.6,3405.0,7.20024]
[1738338661670,2.2580495,3405.6,3405.1,2.93675]
[1738338661816,1.663505,3405.6,3405.2,2.9366]
[1738338662147,1.663505,3405.6,3405.0,4.2634]
[1738338662349,1.663505,3405.6,3405.4,2.9365]
[1738338662650,1.663505,3405.6,3405.1,2.93673]
[1738338662853,1.8298555,3405.6,3405.1,2.93673]
[1738338663715,2.93612,3405.9,3405.2,4.23446]
[1738338663716,1.663505,3405.7,3405.2,4.23446]
[1738338664026,2.81925266,3405.3,3404.6,1.2978]
[1738338664215,5.75586266,3405.3,3404.5,2.93727]
[1738338664418,2.93661,3405.3,3404.5,2.93727]
[1738338664616,1.663505,3405.2,3405.0,2.9368]
[1738338664819,1.663505,3405.2,3405.1,2.93677]
[1738338665042,1.663505,3406.1,3405.7,1.2925]
[1738338665243,1.663505,3406.1,3405.8,2.93608]
[1738338665550,1.2872,3406.5,3405.2,2.93664]
[1738338665551,1.663505,3406.0,3405.4,2.93649]
[1738338665716,0.17002072,3405.9,3405.4,2.93649]
[1738338665917,0.17002072,3405.9,3405.2,4.18456]
[1738338666155,1.52362072,3405.9,3405.2,4.18456]
[1738338666318,1.56032728,3405.9,3405.2,4.18456]
[1738338666958,2.93622,3405.8,3405.2,4.2479]
[1738338667117,2.93622,3405.8,3405.1,3.0]
[1738338667118,1.339,3405.4,3404.6,1.3191]
[1738338667315,1.663505,3405.3,3404.6,1.3191]
[1738338667553,1.663505,3405.3,3405.0,2.93683]
[1738338667714,1.663505,3405.3,3405.1,2.93671]
[1738338668114,1.663505,3405.3,3405.2,2.93668]
[1738338668349,1.663505,3405.3,3404.5,3.53395056]
[1738338668350,1.4972505,3405.3,3404.5,3.53395056]
[1738338668650,1.4972505,3405.3,3404.6,2.93712]
[1738338668855,1.3309,3405.6,3405.0,2.93685]
[1738338669622,1.663505,3405.7,3405.5,2.9364]
[1738338669934,1.663505,3405.9,3405.6,2.93628]
[1738338670545,1.663505,3406.2,3405.4,1.361]
[1738338670722,1.663505,3406.2,3405.6,3.0]
[1738338670926,1.663505,3406.2,3405.9,2.93601]
[1738338671545,1.8298555,3406.2,3405.7,4.30024]
[1738338671747,1.663505,3406.2,3405.8,2.93614]
[1738338671962,1.57222815,3407.0,3405.7,4.30024]
[1738338671963,1.663505,3406.5,3406.2,2.93576]
[1738338672127,1.663505,3406.9,3406.3,1.3128]
[1738338672562,1.663505,3406.9,3406.4,2.93559]
[1738338672868,1.663505,3406.8,3406.4,2.93559]
[1738338673162,1.663505,3406.8,3406.3,4.24848]
[1738338673564,1.663505,3406.8,3406.3,1.3128]
[1738338673767,0.33064454,3406.7,3406.3,1.3128]
[1738338673930,0.2939505,3406.7,3406.3,1.3128]
[1738338675064,1.663505,3406.8,3406.5,2.93556]
[1738338675368,0.037923,3407.1,3406.9,1.2853]
[1738338676159,0.037923,3407.1,3407.0,2.93513]
[1738338676365,0.037923,3407.1,3406.9,1.3217]
[1738338676926,0.037923,3407.1,3406.9,4.3217]
[1738338677228,0.037923,3407.1,3407.0,2.93513]
[1738338677831,0.037923,3407.1,3406.9,4.3217]
[1738338678249,0.037923,3407.1,3407.0,2.93513]
[1738338679226,0.037923,3407.1,3406.9,4.3217]
[1738338679436,0.037923,3407.1,3406.9,7.25689]
[1738338679775,0.037923,3407.1,3406.9,4.3217]
[1738338679947,0.037923,3407.1,3406.9,7.25683]
[1738338680147,0.037923,3407.1,3407.0,2.93513]
[1738338680769,0.037923,3407.1,3406.5,2.93549]
[1738338680997,0.037923,3407.1,3406.7,2.93536]
[1738338681294,0.3361358,3407.1,3406.7,2.93536]
[1738338681590,1.701428,3407.1,3406.7,2.93536]
[1738338681751,1.701428,3407.1,3406.7,2.93539]
[1738338682138,1.3416,3407.0,3406.5,5.93551]
[1738338682335,1.3416,3407.0,3406.7,3.0]
[1738338682539,1.701428,3407.1,3407.0,2.93513]
[1738338683889,1.701428,3407.1,3407.0,5.93513]
[1738338684107,1.701428,3407.1,3407.0,7.22323]
[1738338684599,1.701428,3407.1,3407.0,3.0]
[1738338684949,1.701428,3407.1,3407.0,5.93513]
[1738338686503,1.701428,3407.1,3406.6,4.2595]
[1738338686653,1.701428,3407.1,3405.5,3.28353005]
[1738338686654,2.93524,3406.9,3405.9,4.20156]
[1738338686852,4.21368,3407.0,3406.1,2.93588]
[1738338687076,0.31867591,3406.9,3406.1,2.93588]
[1738338687282,3.25391591,3406.9,3406.1,2.93588]
[1738338687502,2.97870086,3406.8,3406.1,3.0]
[1738338687643,0.62326168,3406.7,3405.7,2.93622]
[1738338687849,1.3564,3406.4,3405.7,2.9362]
[1738338688052,1.3564,3406.4,3405.8,2.93616]
[1738338688274,1.3564,3406.4,3406.1,2.93584]
[1738338688589,1.663505,3406.6,3405.9,2.93604]
[1738338688761,4.598985,3406.6,3406.0,3.0]
[1738338688961,0.3019905,3406.5,3406.0,3.0]
[1738338689880,0.3019905,3406.5,3406.0,5.93598]
[1738338690081,0.3019905,3406.5,3405.8,3.0]
[1738338690281,1.663505,3406.6,3406.4,2.93557]
[1738338690487,1.663505,3407.0,3406.6,2.93541]
[1738338690651,1.9698678,3407.0,3406.6,2.93541]
[1738338691278,1.9698678,3407.0,3406.7,2.93538]
[1738338691485,1.663505,3407.0,3406.9,2.93521]
[1738338691856,0.037923,3407.1,3407.0,2.93513]
[1738338693375,0.037923,3407.1,3406.9,2.93521]
[1738338693586,0.037923,3407.1,3407.0,2.93513]
[1738338699887,2.93518,3407.0,3406.2,2.9358]
[1738338700086,4.21474,3406.9,3406.2,2.9358]
[1738338700417,1.2795,3406.9,3406.7,2.93537]
[1738338700619,0.2080658,3407.1,3406.7,2.93537]
[1738338702187,0.2080658,3407.1,3406.5,2.93549]
[1738338702423,0.32160708,3407.0,3406.6,2.93546]
[1738338702599,0.32160708,3407.0,3406.5,2.93549]
[1738338703235,0.32160708,3407.0,3406.4,3.0]
[1738338703440,0.32160708,3407.0,3406.4,5.93564]
[1738338703636,0.64727679,3406.9,3406.4,5.93564]
[1738338704041,0.64727679,3406.9,3406.0,1.2834]
[1738338704194,0.2080658,3407.1,3406.7,2.93533]
[1738338704391,0.2080658,3407.1,3406.8,2.93529]
[1738338704742,0.2080658,3407.1,3406.8,2.93528]
[1738338704950,0.037923,3407.1,3406.8,2.93528]
[1738338705150,0.037923,3407.1,3407.0,2.93513]
[1738338716527,0.037923,3407.1,3406.9,5.93517]
[1738338717029,0.037923,3407.1,3406.7,5.93533]
[1738338717425,0.037923,3407.1,3406.9,2.9352]
[1738338717628,0.037923,3407.1,3406.7,2.93533]
[1738338718208,0.037923,3407.1,3406.8,2.93524]
[1738338718601,1.2912,3407.0,3406.7,2.93533]
[1738338719303,1.2912,3407.0,3406.8,2.93528]
[1738338719613,1.2912,3407.0,3406.7,2.93533]
[1738338719810,1.2912,3407.0,3406.6,3.0]
[1738338720210,0.03669244,3406.9,3406.3,2.93566]
[1738338720411,0.30293204,3406.8,3406.3,2.93566]
[1738338720615,0.30293204,3406.8,3406.7,2.93539]
[1738338721029,1.663505,3407.0,3406.9,2.93521]
[1738338721554,1.663505,3407.0,3406.9,5.93521]
[1738338723060,1.663505,3407.0,3406.9,3.0]
[1738338723529,1.663505,3407.0,3406.8,5.8705]
[1738338723730,1.663505,3407.0,3406.8,2.93525]
[1738338723966,0.2937328,3406.9,3406.8,2.93525]
[1738338724331,0.2937328,3406.9,3406.3,3.0]
[1738338724640,0.2937328,3406.9,3406.6,2.93542]
[1738338724966,1.663505,3407.0,3406.9,2.93521]
[1738338726143,0.037923,3407.1,3407.0,2.93513]
[1738338727197,0.037923,3407.1,3407.0,7.71323]
[1738338727334,6.01925266,3409.0,3407.0,7.71323]
[1738338727335,2.948805,3408.8,3408.2,1.2281]
[1738338727714,1.2853,3409.3,3409.2,2.93323]
[1738338728206,2.948805,3409.3,3408.7,2.93358]
[1738338728540,2.948805,3409.3,3408.8,2.93351]
[1738338728974,2.948805,3409.3,3408.7,2.93358]
[1738338729193,2.948805,3409.3,3408.5,1.2967]
[1738338729392,1.5801805,3409.3,3409.1,2.93331]
[1738338729708,4.25517563,3409.3,3408.2,4.25467]
[1738338729910,1.2661,3408.6,3407.8,2.93441]
[1738338730045,1.2661,3408.4,3407.6,2.93461]
[1738338730245,2.9341,3408.2,3407.4,2.93476]
[1738338730505,2.9341,3408.2,3407.2,0.59536526]
[1738338730506,1.2661,3408.0,3407.5,2.9347]
[1738338730939,1.2661,3408.0,3407.4,2.93476]
[1738338731141,0.420021,3407.9,3407.4,2.93476]
[1738338731342,2.083526,3407.9,3407.6,2.93454]
[1738338731961,1.663505,3407.9,3407.8,2.93444]
[1738338732500,2.960605,3409.0,3408.5,2.93382]
[1738338732698,1.663505,3409.2,3409.0,2.9334]
[1738338732866,1.663505,3409.2,3409.0,2.93334]
[1738338733455,1.663505,3409.2,3408.8,2.9335]
[1738338733807,1.663505,3409.2,3408.9,2.93344]
[1738338734145,1.663505,3409.2,3408.9,2.93346]
[1738338734349,1.663505,3409.2,3409.0,2.93333]
[1738338734564,1.8298555,3409.2,3409.0,2.93333]
[1738338734867,1.8298555,3409.2,3408.7,2.93364]
[1738338735048,1.8298555,3409.2,3408.8,2.93354]
[1738338735249,1.8298555,3409.2,3408.5,3.52615434]
[1738338735478,1.8298555,3409.2,3408.6,5.93371]
[1738338735808,1.8298555,3409.2,3408.5,0.59231434]
[1738338736012,1.663505,3409.2,3408.9,2.93342]
[1738338736274,1.663505,3409.2,3409.0,2.9334]
[1738338736403,1.663505,3409.2,3408.9,2.93349]
[1738338736604,1.663505,3409.5,3409.2,2.93318]
[1738338736866,2.324,3409.7,3409.0,2.93337]
[1738338736867,1.663505,3409.6,3409.0,2.93337]
[1738338737171,2.4794995,3409.6,3409.0,2.93337]
[1738338737974,2.4794995,3409.6,3409.1,2.93326]
[1738338738138,2.4794995,3409.6,3409.2,2.93323]
[1738338738333,1.663505,3409.5,3409.2,2.93323]
[1738338738534,1.663505,3409.5,3409.0,2.93341]
[1738338738750,2.43712695,3409.5,3409.0,2.93341]
[1738338738953,5.37015695,3409.5,3408.9,3.0]
[1738338739251,2.93308,3409.4,3408.9,3.0]
[1738338739449,3.7634777,3409.3,3408.6,2.93373]
[1738338739652,1.2827,3409.2,3408.6,2.93373]
[1738338739974,1.2827,3409.2,3408.5,0.59231434]
[1738338740118,1.2827,3409.2,3408.6,3.0]
[1738338740119,2.946205,3409.2,3408.6,3.0]
[1738338740321,2.946205,3409.2,3408.7,2.93358]
[1738338740566,3.61150469,3409.2,3408.5,2.93381]
[1738338740871,0.03666969,3409.1,3408.6,3.0]
[1738338741076,3.61150469,3409.2,3408.6,2.93375]
[1738338741272,6.54475469,3409.2,3408.6,2.93375]
[1738338741454,3.61150469,3409.2,3408.6,2.93375]
[1738338741615,3.61150469,3409.2,3408.5,3.0]
[1738338741820,3.91779048,3409.1,3408.5,3.0]
[1738338742118,2.946205,3409.2,3408.4,1.3429]
[1738338742318,5.879445,3409.2,3408.6,2.93368]
[1738338742748,2.946205,3409.2,3408.6,3.0]
[1738338742955,1.663505,3409.2,3409.0,2.93333]
[1738338743138,1.663505,3409.2,3409.1,2.93332]
[1738338743960,1.334,3409.5,3409.1,2.93332]
[1738338744129,1.663505,3409.6,3409.1,2.93332]
[1738338744329,1.663505,3409.6,3409.2,2.93322]
[1738338744577,1.663505,3409.5,3409.0,2.93339]
[1738338744774,1.663505,3409.5,3408.9,2.93346]
[1738338745080,1.663505,3409.5,3409.1,2.9333]
[1738338745874,1.663505,3409.5,3408.9,2.93346]
[1738338746091,1.663505,3409.5,3409.0,2.93338]
[1738338746375,1.663505,3409.5,3408.9,2.93346]
[1738338746376,4.596495,3409.5,3408.9,2.93346]
[1738338746576,2.93322,3409.3,3408.7,2.93365]
[1738338746880,2.93322,3409.3,3408.5,2.9338]
[1738338747027,2.93329,3409.2,3408.5,2.9338]
[1738338747227,2.93322,3409.3,3408.5,3.51884876]
[1738338747428,2.93333,3409.1,3408.5,0.58506876]
[1738338747738,2.93352,3408.9,3408.4,3.0]
[1738338748330,2.93352,3408.9,3408.4,3.57468397]
[1738338748541,2.93362,3408.8,3408.1,4.22295]
[1738338748788,2.93382,3408.6,3407.8,4.21692]
[1738338748929,2.93398,3408.4,3408.0,0.58125514]
[1738338749480,4.596945,3409.0,3408.0,0.58125514]
[1738338749481,2.93358,3408.8,3408.0,0.58125514]
[1738338749630,2.93375,3408.6,3407.9,2.93428]
[1738338749824,2.93399,3408.4,3407.8,3.0]
[1738338750029,2.93399,3408.4,3407.8,5.93443]
[1738338750231,2.93408,3408.3,3407.9,0.58266325]
[1738338750760,1.663505,3409.0,3407.3,2.93482]
[1738338750761,2.93434,3408.0,3407.3,2.93482]
[1738338750968,4.28536,3408.4,3407.3,0.55]
[1738338751196,2.93389,3408.5,3407.9,4.16909]
[1738338751345,2.93393,3408.4,3407.9,4.2348]
[1738338751725,5.86764,3408.6,3407.9,4.16912]
[1738338751927,4.596975,3409.0,3408.4,2.93387]
[1738338752439,4.596975,3409.0,3408.5,3.0]
[1738338753364,1.663505,3409.0,3408.6,1.3215]
[1738338754228,1.663505,3409.0,3408.4,3.58449846]
[1738338754434,2.93354,3408.9,3408.4,0.58449846]
[1738338754647,2.93367,3408.7,3408.4,0.58449846]
[1738338754972,4.596925,3409.0,3408.4,7.18936003]
[1738338755535,4.596925,3409.0,3407.7,0.55]
[1738338755536,2.93367,3408.7,3407.7,0.55]
[1738338755772,2.93384,3408.5,3407.7,2.9345]
[1738338755964,2.93401,3408.3,3407.6,4.1638]
[1738338756139,2.93417,3408.2,3407.6,4.1638]
[1738338756339,2.93401,3408.3,3407.8,0.59294904]
[1738338756541,2.9344,3407.9,3407.3,1.2727]
[1738338756851,1.663505,3408.4,3407.3,1.2727]
[1738338757034,1.663505,3408.4,3407.2,2.93495]
[1738338757035,2.9346,3407.7,3407.0,2.93509]
[1738338757238,2.93468,3407.6,3407.0,2.93509]
[1738338757438,2.93468,3407.6,3407.1,3.0]
[1738338757734,2.93468,3407.6,3407.0,0.5801558]
[1738338757951,2.93497,3407.2,3406.6,2.93546]
[1738338758147,2.93497,3407.2,3406.7,2.93538]
[1738338758369,1.2432,3407.3,3406.7,2.93538]
[1738338758574,1.2432,3407.3,3406.8,3.0]
[1738338758768,2.93497,3407.2,3406.6,0.714377]
[1738338759071,2.93507,3407.1,3406.6,0.59717433]
[1738338759272,2.9352,3407.0,3406.6,0.59717433]
[1738338759438,2.93507,3407.1,3406.6,3.53263433]
[1738338760073,2.93507,3407.1,3406.6,0.59717433]
[1738338760261,2.9351,3407.1,3406.6,0.59717433]
[1738338760575,5.841605,3407.3,3406.6,0.59717433]
[1738338760775,2.93509,3407.1,3406.6,0.59717433]
[1738338760974,1.663505,3407.3,3406.9,2.93514]
[1738338761744,1.663505,3407.4,3406.9,2.93514]
[1738338762073,1.663505,3407.4,3406.7,4.3224]
[1738338762281,1.663505,3407.4,3406.8,2.93524]
[1738338762491,1.663505,3407.4,3406.7,3.0]
[1738338762688,1.663505,3407.4,3406.6,3.59717433]
[1738338762851,0.03669028,3407.3,3406.6,3.59717433]
[1738338763052,2.93522,3406.9,3406.6,0.59717433]
[1738338763250,2.93522,3406.9,3406.5,3.0]
[1738338763788,2.93529,3406.9,3406.4,0.58416872]
[1738338764088,2.93493,3407.3,3406.6,2.9354]
[1738338764288,5.929405,3407.4,3406.8,2.93528]
[1738338764502,2.93487,3407.3,3406.8,2.93528]
[1738338764671,2.93487,3407.3,3406.5,1.2404]
[1738338764870,2.93511,3407.1,3406.5,4.17591]
[1738338765291,2.93511,3407.1,3406.6,2.93547]
[1738338765492,2.93511,3407.1,3406.3,5.9357]
[1738338765655,2.93531,3406.8,3406.2,4.83876861]
[1738338765859,2.93553,3406.6,3405.9,1.2637]
[1738338766223,2.93571,3406.4,3405.5,4.16599]
[1738338766367,2.93571,3406.4,3405.6,3.0]
[1738338766697,2.93571,3406.4,3405.7,2.93623]
[1738338767594,2.93575,3406.3,3405.7,2.93623]
[1738338767958,4.599015,3406.6,3405.8,2.93616]
[1738338768158,2.93572,3406.4,3405.7,2.93624]
[1738338768359,2.9358,3406.3,3405.7,2.93624]
[1738338769575,2.9358,3406.3,3405.5,4.73976698]
[1738338769576,1.2502,3406.0,3405.5,0.57377698]
[1738338769757,1.2502,3406.0,3405.5,3.51017698]
[1738338770162,1.2502,3406.0,3405.6,3.0]
[1738338770557,2.9358,3406.3,3405.6,3.887298]
[1738338770856,2.93582,3406.2,3405.7,2.93625]
[1738338771062,2.93582,3406.2,3405.8,3.0]
[1738338771307,2.93621,3405.8,3405.2,1.3216]
[1738338771478,2.976405,3405.8,3405.3,0.58696615]
[1738338771683,1.663505,3405.8,3405.5,2.93642]
[1738338771865,1.663505,3405.8,3405.7,5.93625]
[1738338772063,1.663505,3406.5,3406.4,2.93565]
[1738338772262,1.663505,3406.9,3406.5,2.93555]
[1738338772474,1.663505,3406.9,3406.5,0.37934843]
[1738338772692,1.663505,3406.9,3406.8,2.9353]
[1738338773111,2.9348,3407.4,3406.8,2.9353]
[1738338773418,1.663505,3407.3,3406.9,2.93521]
[1738338773898,1.663505,3407.3,3407.0,5.93511]
[1738338774099,1.663505,3407.3,3407.0,7.97134843]
[1738338774263,1.663505,3408.0,3407.5,2.93462]
[1738338774465,1.663505,3407.9,3407.5,2.93462]
[1738338774874,1.663505,3408.3,3407.7,2.93452]
[1738338775075,1.663505,3408.4,3407.9,2.93427]
[1738338775473,1.663505,3408.5,3408.1,2.93412]
[1738338775901,3.987505,3408.7,3408.3,2.93399]
[1738338776109,3.987505,3408.7,3407.8,1.2921]
[1738338776110,2.324,3408.7,3407.8,1.2921]
[1738338776279,2.324,3408.7,3408.6,2.93375]
[1738338776606,2.324,3408.7,3408.4,3.0]
[1738338777607,2.324,3408.7,3408.6,2.93375]
[1738338777797,2.324,3408.7,3408.6,5.93375]
[1738338778506,1.3085,3409.3,3408.8,2.93357]
[1738338779009,0.42415,3409.2,3408.6,5.93375]
[1738338780715,0.42415,3409.2,3408.7,2.93364]
[1738338781071,0.58332648,3409.9,3408.8,1.3055]
[1738338781292,1.3146,3410.1,3408.9,2.93349]
[1738338781477,1.3146,3410.1,3409.2,2.93321]
[1738338781787,2.93264,3409.9,3408.9,5.93346]
[1738338782110,0.424724,3409.8,3408.9,2.93349]
[1738338782272,0.424724,3409.8,3408.9,3.0]
[1738338782677,2.93305,3409.5,3408.4,1.3055]
[1738338782887,2.93305,3409.5,3408.7,2.93359]
[1738338783090,0.6290624,3409.5,3408.9,3.0]
[1738338783701,0.6290624,3409.5,3408.9,3.58073902]
[1738338784078,0.424724,3409.8,3409.0,2.93335]
[1738338784487,0.424724,3409.8,3409.1,2.93332]
[1738338785322,4.24711,3410.1,3409.3,2.93314]
[1738338785518,1.3146,3410.1,3409.3,2.93314]
[1738338786008,4.24707,3410.1,3409.3,2.93314]